bitfinex-derivatives/quotes_SOLF0:USTF0_20250522
["timestamp","ask_amount","ask_price","bid_price","bid_amount"]
[1747877630679,0.04111341,174.58,174.55,0.04131104]
[1747877630880,0.04111341,174.58,174.56,5.7265]
[1747877631074,0.04111341,174.58,174.55,0.04131104]
[1747877631789,0.04111341,174.58,174.57,5.7261]
[1747877634098,135.58,174.63,174.6,5.7251]
[1747877634691,135.58,174.63,174.59,5.7254]
[1747877635091,135.62394743,174.63,174.59,0.04257863]
[1747877636382,0.04394743,174.63,174.59,0.04257863]
[1747877636886,0.04394743,174.63,174.62,5.7245]
[1747877637081,135.6,174.68,174.59,0.04257863]
[1747877637492,135.6,174.68,174.67,5.7229]
[1747877637992,135.6,174.68,174.58,10.69949985]
[1747877638190,0.03618496,174.65,174.61,0.03997792]
[1747877638698,0.03618496,174.65,174.64,5.7238]
[1747877640383,0.03618496,174.65,174.62,5.7242]
[1747877640684,0.03618496,174.65,174.61,0.03997792]
[1747877641382,5.7245,174.62,174.61,0.03997792]
[1747877641584,135.6,174.63,174.58,5.7257]
[1747877641995,135.6,174.63,174.52,135.6]
[1747877642484,0.03812341,174.59,174.56,0.04055605]
[1747877643490,0.03812341,174.59,174.56,5.76695605]
[1747877643692,0.03812341,174.59,174.56,0.04055605]
[1747877643892,135.62,174.58,174.57,5.7261]
[1747877644290,0.03812341,174.59,174.56,0.04055605]
[1747877644593,135.62,174.68,174.56,16.4600559]
[1747877644791,135.62,174.68,174.56,10.69949985]
[1747877644990,25.69185804,174.85,174.68,5.7224]
[1747877645189,135.62,174.71,174.68,5.7224]
[1747877645388,135.65621303,174.71,174.68,5.76203823]
[1747877645788,135.65621303,174.71,174.68,0.03963823]
[1747877645988,135.65621303,174.71,174.57,10.69949985]
[1747877646187,135.65621303,174.71,174.52,11.4554]
[1747877646188,135.62,174.71,174.56,135.62]
[1747877646890,5.7222,174.69,174.56,135.62]
[1747877647192,0.03662593,174.64,174.61,0.03651733]
[1747877648096,0.03662593,174.64,174.61,5.76121733]
[1747877648289,0.03662593,174.64,174.61,0.03651733]
[1747877649498,5.7242,174.63,174.61,0.03651733]
[1747877649696,0.03662593,174.64,174.61,0.03651733]
[1747877650099,5.7245,174.63,174.61,0.03651733]
[1747877650290,0.03662593,174.64,174.61,0.03651733]
[1747877651200,0.03662593,174.64,174.63,5.7242]
[1747877653501,135.62,174.68,174.67,5.7228]
[1747877653698,135.62,174.74,174.62,135.62]
[1747877653892,141.3408,174.74,174.7,5.7216]
[1747877654092,135.62,174.74,174.62,135.62]
[1747877654496,5.75916029,174.7,174.66,0.04204389]
[1747877654799,0.03726029,174.7,174.66,0.04204389]
[1747877656192,5.7225,174.69,174.66,0.04204389]
[1747877656603,0.03726029,174.7,174.66,0.04204389]
[1747877657397,5.75936029,174.7,174.66,5.76514389]
[1747877657603,0.03726029,174.7,174.66,0.04204389]
[1747877658103,5.75936029,174.7,174.66,5.76514389]
[1747877658602,0.03726029,174.7,174.66,0.04204389]
[1747877659105,5.7224,174.69,174.66,0.04204389]
[1747877659301,0.03726029,174.7,174.66,0.04204389]
[1747877659605,5.7225,174.69,174.66,0.04204389]
[1747877659810,0.03726029,174.7,174.66,0.04204389]
[1747877660112,0.03726029,174.7,174.68,5.7222]
[1747877660405,0.03726029,174.7,174.66,0.04204389]
[1747877660796,0.03726029,174.7,174.67,5.7226]
[1747877660996,0.03726029,174.7,174.66,0.04204389]
[1747877662109,0.03726029,174.7,174.67,5.7226]
[1747877662706,0.03726029,174.7,174.68,5.7223]
[1747877663308,0.03726029,174.7,174.67,5.7228]
[1747877664007,0.03726029,174.7,174.66,0.04204389]
[1747877665004,5.7225,174.69,174.66,0.04204389]
[1747877665208,0.03726029,174.7,174.66,0.04204389]
[1747877665508,0.03726029,174.7,174.67,5.7228]
[1747877665903,0.03726029,174.7,174.66,0.04204389]
[1747877666106,0.03726029,174.7,174.68,5.7224]
[1747877666306,0.03726029,174.7,174.66,0.04204389]
[1747877666710,0.03726029,174.7,174.69,5.7222]
[1747877667111,0.03726029,174.7,174.67,1.43109898]
[1747877667312,0.03726029,174.7,174.67,7.15379898]
[1747877667506,0.03726029,174.7,174.67,1.43109898]
[1747877669015,0.03726029,174.7,174.68,5.7225]
[1747877669517,0.03726029,174.7,174.66,0.04204389]
[1747877669810,0.03726029,174.7,174.69,5.7222]
[1747877676623,135.43726029,174.7,174.66,0.04204389]
[1747877676822,135.43726029,174.7,174.61,1.01196373]
[1747877677011,135.43726029,174.7,174.6,5.7249]
[1747877677318,135.4,174.7,174.56,1.01196373]
[1747877677628,135.4,174.7,174.57,10.69949985]
[1747877677923,0.04228691,174.65,174.62,0.03891241]
[1747877678323,0.04228691,174.65,174.63,5.7239]
[1747877678523,0.04228691,174.65,174.62,0.03891241]
[1747877679627,0.04228691,174.65,174.62,5.76331241]
[1747877680327,0.04228691,174.65,174.63,5.7241]
[1747877680526,0.04228691,174.65,174.62,0.03891241]
[1747877680718,135.4,174.64,174.62,0.03891241]
[1747877681026,5.7242,174.63,174.62,0.03891241]
[1747877681225,135.4,174.64,174.62,0.03891241]
[1747877682720,141.1238,174.64,174.62,0.03891241]
[1747877682921,135.4,174.64,174.62,0.03891241]
[1747877683112,5.7242,174.63,174.62,0.03891241]
[1747877683919,141.1239,174.64,174.62,0.03891241]
[1747877684923,5.7242,174.63,174.62,0.03891241]
[1747877685430,141.1239,174.64,174.62,0.03891241]
[1747877686225,135.4,174.64,174.62,0.03891241]
[1747877687416,5.7242,174.63,174.62,0.03891241]
[1747877687621,135.4,174.64,174.62,0.03891241]
[1747877689025,135.4,174.64,174.62,5.76331241]
[1747877689226,135.4,174.64,174.62,0.03891241]
[1747877689727,5.7242,174.63,174.62,0.03891241]
[1747877689925,135.4,174.64,174.62,0.03891241]
[1747877691727,135.4,174.64,174.62,5.76341241]
[1747877692031,135.4,174.64,174.62,0.03891241]
[1747877692721,5.7242,174.63,174.62,0.03891241]
[1747877700332,135.4,174.64,174.62,0.03891241]
[1747877701636,135.4,174.64,174.63,5.7242]
[1747877703535,0.04228691,174.65,174.64,5.7238]
[1747877704241,135.92,174.7,174.69,5.7222]
[1747877704438,135.92,174.74,174.66,6.7089057]
[1747877704740,10.67652897,174.75,174.69,6.7089057]
[1747877705035,10.67652897,174.75,174.74,5.7205]
[1747877705239,10.67652897,174.75,174.65,135.92]
[1747877705240,10.67652897,174.75,174.73,0.03841629]
[1747877705444,0.03863026,174.76,174.72,0.03860814]
[1747877706737,108.8,174.75,174.68,1.4309512]
[1747877707841,0.03970712,174.73,174.7,0.04113122]
[1747877708032,5.7215,174.71,174.7,0.04113122]
[1747877712743,135.88,174.72,174.7,0.04113122]
[1747877713146,0.03970712,174.73,174.71,5.7215]
[1747877713447,0.03970712,174.73,174.7,0.04113122]
[1747877714939,5.7215,174.71,174.7,0.04113122]
[1747877715141,141.6015,174.71,174.7,0.04113122]
[1747877715340,135.88,174.71,174.7,0.04113122]
[1747877716146,141.6015,174.71,174.7,0.04113122]
[1747877723049,135.88,174.71,174.7,0.04113122]
[1747877723450,141.6015,174.71,174.7,0.04113122]
[1747877724050,141.6015,174.71,174.7,3.122e-05]
[1747877724248,5.7239,174.64,174.59,1.01744634]
[1747877724555,135.28,174.65,174.59,6.74284634]
[1747877724756,135.28,174.65,174.59,1.01744634]
[1747877725252,0.04124913,174.64,174.6,0.03611994]
[1747877725451,5.7249,174.61,174.6,0.03611994]
[1747877727251,0.04124913,174.64,174.52,1.01744634]
[1747877727451,640.73623879,174.65,174.52,1.01744634]
[1747877728258,0.04153947,174.6,174.57,0.04152432]
[1747877728555,135.3,174.59,174.57,0.04152432]
[1747877729556,141.0257,174.59,174.57,0.04152432]
[1747877730053,135.3,174.59,174.57,0.04152432]
[1747877730649,5.7258,174.58,174.57,0.04152432]
[1747877731851,135.3,174.59,174.57,0.04152432]
[1747877734451,0.04153947,174.6,174.59,5.7255]
[1747877735257,0.04153947,174.6,174.57,0.04152432]
[1747877736357,94.07034833,256.73,174.57,0.04152432]
[1747877736557,135.34,174.72,174.55,135.34]
[1747877736761,135.34,174.72,174.58,5.7257]
[1747877736958,10.71623879,174.71,174.54,135.34]
[1747877737355,10.71623879,174.71,174.48,495.91744634]
[1747877737561,0.03661389,174.64,174.61,0.0396776]
[1747877737758,135.34,174.63,174.61,0.04312731]
[1747877739764,0.0437667,174.64,174.63,5.7241]
[1747877740061,135.34,174.71,174.61,0.04312731]
[1747877740263,135.34,174.71,174.67,5.7227]
[1747877740560,135.34,174.71,174.6,135.34]
[1747877741062,0.04384717,174.67,174.64,0.03868443]
[1747877742355,0.04384717,174.67,174.65,5.7232]
[1747877742563,0.04384717,174.67,174.64,0.03868443]
[1747877743564,5.7234,174.66,174.64,0.03868443]
[1747877743762,0.04384717,174.67,174.64,0.03868443]
[1747877744266,135.32,174.66,174.64,0.03868443]
[1747877744860,5.7235,174.65,174.64,0.03868443]
[1747877747762,141.0432,174.66,174.64,0.03868443]
[1747877747967,135.32,174.66,174.64,0.03868443]
[1747877748864,5.7235,174.65,174.64,0.03868443]
[1747877749461,5.7235,174.65,174.64,8.443e-05]
[1747877756066,0.04384717,174.67,174.64,8.443e-05]
[1747877756462,5.7218,174.71,174.67,5.7226]
[1747877756771,494.9,174.74,174.64,8.443e-05]
[1747877757075,5.7227,174.68,174.64,5.72368443]
[1747877757471,0.03699212,174.68,174.64,8.443e-05]
[1747877757663,0.03699212,174.68,174.66,5.723]
[1747877757868,0.03699212,174.68,174.64,8.443e-05]
[1747877758168,0.03699212,174.68,174.65,5.7232]
[1747877758472,0.03699212,174.68,174.64,8.443e-05]
[1747877761272,5.75959212,174.68,174.64,5.72368443]
[1747877761872,5.7229,174.67,174.64,5.72368443]
[1747877762171,0.03699212,174.68,174.64,8.443e-05]
[1747877762373,5.75959212,174.68,174.64,8.443e-05]
[1747877762674,0.03699212,174.68,174.67,5.7228]
[1747877762867,634.06,174.74,174.64,8.443e-05]
[1747877763777,0.04054209,174.71,174.64,8.443e-05]
[1747877764172,0.04054209,174.71,174.67,5.7225]
[1747877764577,0.04054209,174.71,174.64,8.443e-05]
[1747877764777,5.7221,174.7,174.65,5.7234]
[1747877764975,0.04054209,174.71,174.64,8.443e-05]
[1747877765378,5.7218,174.7,174.64,8.443e-05]
[1747877765874,0.04054209,174.71,174.64,8.443e-05]
[1747877766074,108.84054209,174.71,174.64,8.443e-05]
[1747877766473,10.71623879,174.66,174.57,1.35741392]
[1747877766676,10.71623879,174.62,174.46,3.40376982]
[1747877766975,742.66,174.61,174.46,3.40376982]
[1747877767581,5.7267,174.56,174.54,0.04334379]
[1747877767881,139.1802064,174.57,174.54,0.04334379]
[1747877768075,144.9066064,174.57,174.54,0.04334379]
[1747877768477,139.1802064,174.57,174.54,0.04334379]
[1747877770379,0.0402064,174.57,174.54,0.04334379]
[1747877770583,139.18,174.63,174.54,0.04334379]
[1747877770883,139.18,174.63,174.51,139.18]
[1747877771180,144.9044,174.63,174.55,5.7265]
[1747877771382,139.18,174.63,174.51,139.18]
[1747877771680,5.7258,174.58,174.55,0.03681174]
[1747877771984,139.18,174.57,174.55,0.03681174]
[1747877773384,139.18,174.57,174.47,5.7291]
[1747877773585,139.18,174.57,174.43,139.18]
[1747877774080,139.18,174.58,174.45,10.71623879]
[1747877774282,144.9055,174.59,174.45,10.71623879]
[1747877774481,0.03966945,174.54,174.5,0.04266913]
[1747877774978,139.18,174.59,174.5,0.04266913]
[1747877775872,139.18,174.59,174.51,5.7278]
[1747877776074,0.0436114,174.57,174.5,0.04266913]
[1747877777086,5.7268,174.55,174.5,0.04266913]
[1747877777275,142.06,174.54,174.5,0.04266913]
[1747877777674,0.0436114,174.57,174.5,0.04266913]
[1747877777878,142.1036114,174.57,174.5,0.04266913]
[1747877778388,142.1036114,174.57,174.55,5.7266]
[1747877779190,0.0436114,174.57,174.56,5.7264]
[1747877779488,0.0436114,174.57,174.54,0.04001486]
[1747877782284,5.7267,174.55,174.54,0.04001486]
[1747877782492,142.08,174.55,174.45,142.08]
[1747877782690,142.08,174.55,174.42,10.71623879]
[1747877782987,5.7271,174.54,174.49,5.7286]
[1747877783189,142.08,174.55,174.42,10.71623879]
[1747877783383,0.03612116,174.5,174.49,5.7284]
[1747877783693,0.04344931,174.51,174.47,0.04058544]
[1747877784983,0.04344931,174.51,174.5,5.7284]
[1747877785878,0.04344931,174.51,174.49,5.7287]
[1747877786085,0.04344931,174.51,174.47,0.04058544]
[1747877786489,0.04344931,174.51,174.48,5.7287]
[1747877786885,0.04344931,174.51,174.47,0.04058544]
[1747877787084,0.04344931,174.51,174.48,5.7287]
[1747877787283,0.04344931,174.51,174.47,0.04058544]
[1747877788790,0.04344931,174.51,174.5,5.7284]
[1747877788997,0.04344931,174.51,174.47,0.04058544]
[1747877789995,0.04344931,174.51,174.5,5.7284]
[1747877790296,0.04344931,174.51,174.47,0.04058544]
[1747877790595,0.04344931,174.51,174.48,5.729]
[1747877790802,0.04344931,174.51,174.47,0.04058544]
[1747877791294,142.12,174.5,174.47,0.04058544]
[1747877791694,5.729,174.49,174.47,0.04058544]
[1747877792304,142.12,174.5,174.47,0.04058544]
[1747877793396,5.7287,174.49,174.47,0.04058544]
[1747877793898,147.8484,174.5,174.47,0.04058544]
[1747877794507,142.12,174.5,174.47,0.04058544]
[1747877795311,0.04344931,174.51,174.47,0.04058544]
[1747877795603,142.12,174.54,174.53,5.7274]
[1747877795798,495.1,174.57,174.53,5.7274]
[1747877795996,142.12,174.58,174.53,5.7274]
[1747877796197,142.12,174.58,174.48,6.72030476]
[1747877796402,7.0988078,174.6,174.51,6.72030476]
[1747877796698,7.0988078,174.6,174.46,142.12]
[1747877796699,0.04328249,174.57,174.54,5.76332432]
[1747877796900,0.04398549,174.57,174.54,5.76810367]
[1747877797104,0.04398549,174.57,174.54,0.04130367]
[1747877797306,0.04398549,174.57,174.55,5.7267]
[1747877797507,0.04398549,174.57,174.54,0.04130367]
[1747877798604,0.04398549,174.57,174.55,5.7267]
[1747877798809,0.04398549,174.57,174.54,0.04130367]
[1747877799308,0.04398549,174.57,174.55,5.7267]
[1747877799509,0.04398549,174.57,174.54,0.04130367]
[1747877800405,0.04398549,174.57,174.54,5.76810367]
[1747877801205,0.04398549,174.57,174.54,0.04130367]
[1747877802011,142.12,174.56,174.44,142.12]
[1747877802407,142.12,174.56,174.4,253.0123697]
[1747877803012,0.04104588,174.51,174.47,0.04264494]
[1747877803214,142.1,174.5,174.47,0.04264494]
[1747877803509,142.1,174.5,174.36,143.45175336]
[1747877803813,5.7294,174.47,174.36,143.45175336]
[1747877804013,142.1,174.5,174.36,143.45175336]
[1747877804513,5.76827244,174.45,174.41,0.04207578]
[1747877804710,0.03807244,174.45,174.41,0.04207578]
[1747877805606,142.15807244,174.45,174.41,0.04207578]
[1747877805805,5.7307,174.43,174.41,0.04207578]
[1747877806108,142.15807244,174.45,174.41,0.04207578]
[1747877806506,5.731,174.42,174.41,0.04207578]
[1747877807810,142.15807244,174.45,174.32,147.8541]
[1747877808018,142.12,174.45,174.32,142.12]
[1747877808216,142.12,174.45,174.29,1.35175336]
[1747877808411,10.73993074,174.43,174.29,1.35175336]
[1747877808614,0.04108296,174.38,174.34,0.04202877]
[1747877808815,141.1,174.37,174.29,1.35175336]
[1747877809119,0.04108296,174.38,174.29,1.35175336]
[1747877809321,5.7326,174.37,174.29,1.35175336]
[1747877809715,0.04108296,174.38,174.29,1.35175336]
[1747877810024,0.04108296,174.38,174.31,0.04362949]
[1747877810720,0.04108296,174.38,174.33,5.7337]
[1747877811121,0.04108296,174.38,174.31,0.04362949]
[1747877811319,0.04108296,174.38,174.37,5.7326]
[1747877811625,141.12,174.46,174.36,0.03955974]
[1747877811920,5.7303,174.45,174.38,5.732]
[1747877812318,141.12,174.46,174.38,5.732]
[1747877812513,141.12,174.46,174.34,141.12]
[1747877812514,0.03632345,174.44,174.4,0.03689962]
[1747877815928,5.76672345,174.44,174.4,0.03689962]
[1747877816118,0.03632345,174.44,174.4,0.03689962]
[1747877816526,0.03632345,174.44,174.41,5.7313]
[1747877818026,0.03632345,174.44,174.4,0.03689962]
[1747877818725,0.03632345,174.44,174.42,5.7307]
[1747877819033,0.03632345,174.44,174.4,0.03689962]
[1747877819228,0.03632345,174.44,174.4,5.76829962]
[1747877819531,0.03632345,174.44,174.4,0.03689962]
[1747877820634,0.03632345,174.44,174.41,5.7312]
[1747877821634,5.76682345,174.44,174.4,0.03689962]
[1747877821839,0.03632345,174.44,174.4,0.03689962]
[1747877822336,146.59632345,174.44,174.4,0.03689962]
[1747877823537,5.7307,174.43,174.4,0.03689962]
[1747877824133,146.59632345,174.44,174.4,5.76849962]
[1747877824331,0.03632345,174.44,174.4,0.03689962]
[1747877824530,146.56,174.5,174.4,0.03689962]
[1747877824728,146.56,174.5,174.46,5.7295]
[1747877824927,146.56,174.5,174.38,146.56]
[1747877825335,5.7276,174.53,174.48,5.7289]
[1747877825536,0.03885286,174.52,174.49,0.04112919]
[1747877825735,0.03885286,174.52,174.49,0.03658604]
[1747877826934,0.03885286,174.52,174.36,10.73993074]
[1747877826935,5.731,174.42,174.38,5.7323]
[1747877827132,146.54,174.45,174.33,146.54]
[1747877827332,146.54,174.44,174.33,146.54]
[1747877827529,146.54,174.43,174.33,146.54]
[1747877827728,0.03809238,174.41,174.37,0.04201372]
[1747877828433,5.7323,174.38,174.37,0.04201372]
[1747877828833,0.03809238,174.41,174.37,0.04201372]
[1747877829039,5.7323,174.38,174.37,0.04201372]
[1747877829240,152.2723,174.38,174.37,0.04201372]
[1747877832641,146.54,174.38,174.37,0.04201372]
[1747877832941,146.58,174.4,174.37,0.04201372]
[1747877834642,5.7323,174.38,174.37,0.04201372]
[1747877835538,5.733,174.36,174.31,5.7343]
[1747877835745,146.58,174.4,174.29,193.08688412]
[1747877836245,5.7327,174.37,174.32,5.734]
[1747877836446,5.7327,174.37,174.29,193.08688412]
[1747877836739,0.04205457,174.35,174.31,0.03806359]
[1747877837340,146.64205457,174.35,174.31,0.03806359]
[1747877838839,0.04205457,174.35,174.34,5.7336]
[1747877840647,0.04205457,174.35,174.32,5.734]
[1747877840848,0.04205457,174.35,174.31,0.03806359]
[1747877841742,5.457e-05,174.35,174.34,5.7336]
[1747877847050,146.6,174.42,174.41,5.7313]
[1747877847252,145.26,174.46,174.33,145.26]
[1747877848046,0.03962563,174.41,174.38,0.03769128]
[1747877848844,0.03962563,174.41,174.4,5.7316]
[1747877849046,0.03962563,174.41,174.38,0.03769128]
[1747877849754,0.03962563,174.41,174.39,5.7319]
[1747877849950,0.03962563,174.41,174.38,0.03769128]
[1747877851454,0.03962563,174.41,174.4,5.7316]
[1747877851854,145.26,174.46,174.38,0.03769128]
[1747877852756,145.26,174.46,174.41,5.7313]
[1747877852956,0.04075825,174.45,174.42,0.03672475]
[1747877853751,5.7306,174.43,174.42,0.03672475]
[1747877853951,0.04075825,174.45,174.36,5.7329]
[1747877854150,145.26,174.46,174.36,5.7329]
[1747877854449,145.26,174.46,174.33,146.26158733]
[1747877854761,145.26,174.46,174.38,5.7322]
[1747877855056,0.04322621,174.44,174.4,0.03985542]
[1747877855255,5.7313,174.41,174.4,0.03985542]
[1747877856454,5.7313,174.41,174.31,1.02158733]
[1747877856455,5.7343,174.32,174.31,1.02158733]
[1747877856658,145.24,174.34,174.31,1.02158733]
[1747877857457,145.28172548,174.34,174.31,1.05804768]
[1747877858348,145.28172548,174.34,174.31,0.03646035]
[1747877860360,145.28172548,174.34,174.32,5.7342]
[1747877860560,145.28172548,174.34,174.31,0.03646035]
[1747877861564,151.01552548,174.34,174.31,0.03646035]
[1747877861762,145.28172548,174.34,174.31,0.03646035]
[1747877865165,145.28172548,174.34,174.33,5.7339]
[1747877865364,0.04172548,174.34,174.33,5.7339]
[1747877866458,0.04172548,174.34,174.31,0.03646035]
[1747877867565,0.04172548,174.34,174.31,5.77096035]
[1747877867769,0.04172548,174.34,174.31,0.03646035]
[1747877869665,5.77532548,174.34,174.31,0.03646035]
[1747877870065,0.04172548,174.34,174.31,5.77096035]
[1747877871563,0.04172548,174.34,174.32,5.7341]
[1747877871766,0.04172548,174.34,174.31,0.03646035]
[1747877872171,0.04172548,174.34,174.33,5.7339]
[1747877872871,0.04172548,174.34,174.32,5.7342]
[1747877873562,0.04172548,174.34,174.31,5.77096035]
[1747877873869,0.04172548,174.34,174.31,0.03646035]
[1747877875465,5.7342,174.32,174.31,0.03646035]
[1747877875661,157.1342,174.32,174.31,0.03646035]
[1747877878575,5.7359,174.27,174.21,152.42158733]
[1747877879066,5.7359,174.27,174.21,1.02158733]
[1747877879267,151.4,174.32,174.21,1.02158733]
[1747877879467,0.03913009,174.28,174.25,0.04054491]
[1747877879663,151.42,174.27,174.25,0.04054491]
[1747877880173,5.7362,174.26,174.25,0.04054491]
[1747877880471,506.43993074,174.26,174.17,1.02630029]
[1747877880675,647.14,174.26,174.17,1.02630029]
[1747877881175,5.7388,174.19,174.17,1.02630029]
[1747877881473,0.04174482,174.2,174.17,1.02630029]
[1747877881675,0.04174482,174.2,174.17,1.06925357]
[1747877881876,5.7389,174.18,174.17,1.06925357]
[1747877884072,0.04174482,174.2,174.02,152.83175336]
[1747877884271,10.73993074,174.19,174.02,1.35175336]
[1747877884471,10.73993074,174.15,174.02,1.35175336]
[1747877884672,756.44,174.14,174.02,1.35175336]
[1747877885072,0.04344673,174.1,174.06,0.04255742]
[1747877885266,151.48,174.09,174.06,0.04255742]
[1747877885775,5.7425,174.07,174.06,0.04255742]
[1747877886479,157.2625,174.07,174.06,0.04255742]
[1747877887274,5.7447,174.01,173.88,1.35175336]
[1747877887481,5.7447,174.01,173.96,5.7461]
[1747877887680,151.52,174.07,173.89,109.1]
[1747877887979,151.52,174.07,173.96,5.7459]
[1747877888179,151.52,174.07,173.89,109.1]
[1747877888480,5.7448,174.0,173.99,0.04019023]
[1747877890184,0.04347471,174.02,173.99,0.04019023]
[1747877890874,5.7448,174.0,173.99,0.04019023]
[1747877893085,149.56347471,174.02,173.99,0.04019023]
[1747877893487,5.7448,174.0,173.99,0.04019023]
[1747877896886,5.7445,174.01,173.99,0.04019023]
[1747877897077,0.04347471,174.02,173.99,0.04019023]
[1747877897481,0.04347471,174.02,173.99,5.78499023]
[1747877897985,0.04347471,174.02,174.0,5.7447]
[1747877898185,0.04347471,174.02,173.99,0.04019023]
[1747877900789,0.04347471,174.02,174.0,5.7445]
[1747877901497,0.04347471,174.02,173.99,0.04019023]
[1747877902387,5.7448,174.0,173.99,0.04019023]
[1747877903093,5.7445,174.01,173.99,0.04019023]
[1747877904195,5.78767471,174.02,173.99,0.04019023]
[1747877904790,5.7448,174.0,173.99,0.04019023]
[1747877905093,0.04347471,174.02,173.99,0.04019023]
[1747877905983,5.7447,174.01,173.99,0.04019023]
[1747877906395,0.04347471,174.02,173.99,0.04019023]
[1747877906789,5.7448,174.0,173.99,0.04019023]
[1747877908397,149.62,174.0,173.81,496.54]
[1747877908696,149.62,174.0,173.83,149.62]
[1747877908893,5.7481,173.91,173.83,149.62]
[1747877909194,149.62,174.0,173.83,149.62]
[1747877909195,149.62,173.95,173.85,5.7497]
[1747877909394,0.04352792,173.92,173.88,0.04312018]
[1747877909593,0.0413258,173.92,173.88,0.0428273]
[1747877910399,149.62,173.91,173.88,0.0428273]
[1747877911397,149.6813258,173.92,173.88,0.0428273]
[1747877912498,0.0413258,173.92,173.88,0.0428273]
[1747877912799,5.7478,173.91,173.88,0.0428273]
[1747877912984,0.0413258,173.92,173.88,0.0428273]
[1747877913600,5.7484,173.9,173.88,0.0428273]
[1747877914303,5.7484,173.89,173.88,0.0428273]
[1747877915695,149.68,173.89,173.78,149.68]
[1747877915900,149.68,173.89,173.78,155.432]
[1747877916199,5.7505,173.83,173.78,155.432]
[1747877916398,149.68,173.89,173.71,471.13149334]
[1747877916597,0.03906276,173.82,173.78,0.03708624]
[1747877916901,149.7,173.81,173.71,620.83149334]
[1747877917094,0.03825899,173.78,173.74,0.03923377]
[1747877917293,5.7528,173.76,173.74,0.03923377]
[1747877917494,0.03825899,173.78,173.74,0.03923377]
[1747877917802,5.753,173.75,173.74,0.03923377]
[1747877918004,155.453,173.75,173.74,0.03923377]
[1747877918490,0.03825899,173.78,173.74,0.03923377]
[1747877918697,149.7,173.77,173.74,0.03923377]
[1747877918898,0.03825899,173.78,173.74,0.03923377]
[1747877919095,5.7524,173.77,173.74,0.03923377]
[1747877919295,0.03825899,173.78,173.74,0.03923377]
[1747877923602,5.7524,173.77,173.74,0.03923377]
[1747877923806,0.03825899,173.78,173.74,0.03923377]
[1747877924205,5.7524,173.77,173.74,0.03923377]
[1747877924399,0.03825899,173.78,173.74,0.03923377]
[1747877925006,5.7524,173.77,173.74,0.03923377]
[1747877925299,0.03825899,173.78,173.74,0.03923377]
[1747877926405,0.03825899,173.78,173.74,5.79233377]
[1747877926607,0.03825899,173.78,173.74,0.03923377]
[1747877927402,152.98,173.82,173.74,0.03923377]
[1747877927903,152.98,173.84,173.74,0.03923377]
[1747877928105,152.98,173.84,173.7,10.73993074]
[1747877928497,0.03766097,173.79,173.76,5.7526]
[1747877928693,0.03766097,173.79,173.75,0.04054774]
[1747877931206,0.03766097,173.79,173.75,5.79324774]
[1747877931507,649.8,173.88,173.75,0.04054774]
[1747877931709,649.8,173.88,173.74,153.0]
[1747877931908,5.75,173.85,173.79,5.7515]
[1747877932108,649.8,173.88,173.74,153.0]
[1747877932410,0.04317119,173.83,173.81,5.751]
[1747877932708,0.04317119,173.83,173.8,0.03762771]
[1747877935607,5.751,173.81,173.8,0.03762771]
[1747877936211,5.7522,173.78,173.73,5.7536]
[1747877936713,5.7524,173.77,173.73,5.7536]
[1747877936912,5.7524,173.77,173.72,5.754]
[1747877937208,272.31494536,173.76,173.61,1.35175336]
[1747877937507,272.31494536,173.76,173.42,26.73355678]
[1747877937508,183.88941693,173.69,173.42,26.73355678]
[1747877937703,153.0,173.68,173.49,9.95867551]
[1747877937903,153.0,173.67,173.53,9.95867551]
[1747877938308,0.04256943,173.62,173.58,0.04412287]
[1747877939007,5.80006943,173.62,173.58,0.04412287]
[1747877939313,0.04256943,173.62,173.58,0.04412287]
[1747877939513,5.7583,173.59,173.58,0.04412287]
[1747877940214,153.04256943,173.62,173.58,0.04412287]
[1747877940619,5.7583,173.59,173.58,0.04412287]
[1747877940916,153.04256943,173.62,173.58,0.04412287]
[1747877941115,5.7583,173.6,173.58,0.04412287]
[1747877941414,153.04256943,173.62,173.58,0.04412287]
[1747877941616,5.7583,173.59,173.58,0.04412287]
[1747877943317,153.04256943,173.62,173.58,0.04412287]
[1747877943821,153.14256943,173.62,173.58,0.04412287]
[1747877944307,5.7583,173.59,173.58,0.04412287]
[1747877944906,0.04256943,173.62,173.58,0.04412287]